bitfinex/quotes_BTCUSD_20260110
["timestamp","ask_amount","ask_price","bid_price","bid_amount"]
[1768044955846,6.1e-07,90805.0,90793.0,0.01101406]
[1768044960684,6.1e-07,90805.0,90790.0,0.06015213]
[1768044961114,0.04636933,90805.0,90792.0,0.01101418]
[1768044962035,0.05738145,90804.0,90791.0,0.0110143]
[1768044962258,0.05738145,90804.0,90789.0,0.01101455]
[1768044962467,6.1e-07,90805.0,90804.0,0.000999]
[1768044962598,0.02204061,90805.0,90804.0,0.000999]
[1768044962804,0.02204061,90805.0,90797.0,0.01101357]
[1768044963240,0.02204061,90805.0,90796.0,0.0110137]
[1768044963433,0.02204061,90805.0,90797.0,0.01101357]
[1768044964076,0.02204061,90805.0,90796.0,0.0110137]
[1768044964412,0.02204061,90805.0,90797.0,0.01101357]
[1768044964765,0.02204061,90805.0,90796.0,0.0110137]
[1768044964986,0.02204061,90805.0,90797.0,0.01101357]
[1768044965380,0.02204061,90805.0,90797.0,0.01094535]
[1768044965787,0.02204061,90805.0,90796.0,0.0110137]
[1768044966021,0.02204061,90805.0,90795.0,0.01101382]
[1768044966219,6.1e-07,90805.0,90795.0,0.01101382]
[1768044967016,6.1e-07,90805.0,90795.0,0.05750814]
[1768044967224,6.1e-07,90805.0,90795.0,0.04649432]
[1768044967770,0.01101321,90805.0,90795.0,0.04649432]
[1768044967971,6.1e-07,90805.0,90795.0,0.04649432]
[1768044968209,0.01101321,90805.0,90795.0,0.04649432]
[1768044968573,0.01101273,90804.0,90790.0,0.01101442]
[1768044969052,0.01101273,90804.0,90786.0,0.05750923]
[1768044969248,0.01101309,90801.0,90787.0,0.03305479]
[1768044969476,0.01101309,90801.0,90787.0,0.02204]
[1768044969609,0.01101309,90801.0,90787.0,0.03305479]
[1768044970531,0.01101321,90800.0,90787.0,0.02204]
[1768044970729,0.01101321,90800.0,90787.0,0.03305479]
[1768044970934,0.01101321,90800.0,90787.0,0.02204]
[1768044971584,0.01101309,90801.0,90787.0,0.03305479]
[1768044971732,0.01101321,90800.0,90787.0,0.02204]
[1768044972080,0.01101321,90800.0,90787.0,0.03305479]
[1768044972698,0.05840688,90801.0,90787.0,0.03305479]
[1768044973268,0.05840688,90801.0,90787.0,0.02204]
[1768044973480,0.01101321,90800.0,90787.0,0.03305479]
[1768044973697,0.01101321,90800.0,90787.0,0.02204]
[1768044973918,0.01096818,90800.0,90787.0,0.02204]
[1768044974890,0.01096818,90800.0,90787.0,0.06853432]
[1768044975076,0.01101333,90799.0,90788.0,0.04649432]
[1768044975289,0.01096818,90800.0,90788.0,0.04649432]
[1768044975482,0.0110137,90796.0,90787.0,0.02204]
[1768044975683,0.01101406,90793.0,90781.0,0.04649432]
[1768044975918,0.05506928,90795.0,90781.0,0.04649432]
[1768044975919,0.01101394,90794.0,90781.0,0.04649432]
[1768044976151,0.05840785,90793.0,90779.0,0.03305576]
[1768044976292,0.04739379,90793.0,90781.0,0.01101552]
[1768044976497,0.04739379,90793.0,90780.0,0.01101564]
[1768044976726,0.01101394,90794.0,90780.0,0.04649432]
[1768044977121,0.01101394,90794.0,90781.0,0.04649432]
[1768044977338,0.01101418,90792.0,90781.0,0.04649432]
[1768044977671,0.01101406,90793.0,90779.0,0.03305576]
[1768044977843,0.01101418,90792.0,90779.0,0.02204]
[1768044977991,0.01101418,90792.0,90779.0,0.07955008]
[1768044978198,0.01101418,90792.0,90780.0,0.04649432]
[1768044978606,0.01101418,90792.0,90779.0,0.02204]
[1768044979480,0.05840797,90792.0,90779.0,0.02204]
[1768044979997,0.04739379,90792.0,90779.0,0.03305576]
[1768044983154,0.04739379,90792.0,90780.0,0.01101564]
[1768044983350,0.04739379,90792.0,90779.0,0.03305576]
[1768044983693,0.04739379,90792.0,90780.0,0.01101564]
[1768044983896,0.01101406,90793.0,90780.0,0.05750996]
[1768044984414,0.01101394,90794.0,90780.0,0.04649432]
[1768044984641,0.03305357,90797.0,90780.0,0.04649432]
[1768044984771,0.0110137,90796.0,90780.0,0.05750996]
[1768044985027,0.01101382,90795.0,90781.0,0.01101552]
[1768044985428,0.0110137,90796.0,90781.0,0.01101552]
[1768044985844,0.08044736,90797.0,90783.0,0.01101527]
[1768044986433,0.0110137,90796.0,90782.0,0.01101539]
[1768044987460,0.08044736,90797.0,90783.0,0.01101527]
[1768044987647,0.08044736,90797.0,90783.0,0.05750959]
[1768044987947,0.0110137,90796.0,90783.0,0.04649432]
[1768044995919,0.0110137,90796.0,90783.0,0.05750959]
[1768044996123,0.0110137,90796.0,90782.0,0.01101539]
[1768044999767,0.0110137,90796.0,90780.0,0.05951836]
[1768045000032,0.0110137,90796.0,90781.0,0.01101552]
[1768045000033,0.01101382,90795.0,90781.0,0.01101552]
[1768045000834,0.01101382,90795.0,90780.0,0.05951836]
[1768045000835,0.01101394,90794.0,90780.0,0.05951836]
[1768045001131,0.0110137,90796.0,90781.0,0.01101552]
[1768045001446,0.0110137,90796.0,90782.0,0.01101539]
[1768045002289,0.08044736,90797.0,90782.0,0.01101539]
[1768045002494,0.08044736,90797.0,90783.0,0.01101527]
[1768045002845,0.0110137,90796.0,90782.0,0.01101539]
[1768045003075,0.0110137,90796.0,90783.0,0.01101527]
[1768045003283,0.0110137,90796.0,90782.0,0.01101539]
[1768045003960,0.06943379,90797.0,90783.0,0.01101527]
[1768045004752,0.06943379,90797.0,90785.0,0.01101503]
[1768045004911,0.06943379,90797.0,90784.0,0.01101515]
[1768045005129,0.06943379,90797.0,90785.0,0.01101503]
[1768045005334,0.06943379,90797.0,90784.0,0.01101515]
[1768045006255,0.06943379,90797.0,90785.0,0.01101503]
[1768045007366,0.06943379,90797.0,90786.0,0.01101491]
[1768045007566,0.06943379,90797.0,90785.0,0.01101503]
[1768045007772,0.04852809,90796.0,90785.0,0.01101503]
[1768045008268,0.04852809,90796.0,90784.0,0.01101515]
[1768045008531,0.04852809,90796.0,90785.0,0.01101503]
[1768045011731,0.04852809,90796.0,90786.0,0.01101491]
[1768045012072,0.04852809,90796.0,90785.0,0.01101503]
[1768045012614,0.04852809,90796.0,90786.0,0.01101491]
[1768045013353,0.04852809,90796.0,90787.0,0.01101479]
[1768045013559,0.04852809,90796.0,90786.0,0.01101491]
[1768045015132,0.02204,90797.0,90786.0,0.01101491]
[1768045017919,0.02204,90797.0,90787.0,0.01101479]
[1768045018659,0.02204,90797.0,90786.0,0.01101491]
[1768045018860,0.02204,90797.0,90787.0,0.01101479]
[1768045019060,0.02204,90797.0,90786.0,0.01101491]
[1768045019267,0.02204,90797.0,90787.0,0.01101479]
[1768045019641,0.02204,90797.0,90786.0,0.01101491]
[1768045019856,0.02204,90797.0,90785.0,0.01101503]
[1768045020028,0.02204,90797.0,90787.0,0.01101479]
[1768045020252,0.02204,90797.0,90788.0,0.01101467]
[1768045020610,0.02204,90797.0,90787.0,0.01101479]
[1768045020939,0.02204,90797.0,90784.0,0.05946652]
[1768045021606,0.02204,90797.0,90786.0,0.01101491]
[1768045023600,0.02204,90797.0,90784.0,0.05946652]
[1768045023778,0.02204,90797.0,90785.0,0.01101503]
[1768045023966,0.02204,90797.0,90786.0,0.01101491]
[1768045024164,0.02204,90797.0,90787.0,0.01101479]
[1768045026108,0.02204,90797.0,90788.0,0.01101467]
[1768045026337,0.02204,90797.0,90787.0,0.01101479]
[1768045027619,0.02204,90797.0,90786.0,0.01101491]
[1768045027822,0.02204,90797.0,90785.0,0.01101503]
[1768045028777,0.02204,90797.0,90786.0,0.01101491]
[1768045029483,0.02204,90797.0,90785.0,0.01101503]
[1768045030916,0.02204,90797.0,90786.0,0.01101491]
[1768045032622,0.02204,90797.0,90787.0,0.01101479]
[1768045033209,0.02204,90797.0,90788.0,0.01101467]
[1768045034331,0.02204,90797.0,90787.0,0.01101479]
[1768045034535,0.02204,90797.0,90788.0,0.01101467]
[1768045035128,0.02204,90797.0,90790.0,0.01101442]
[1768045035354,0.021041,90797.0,90790.0,0.01101442]
[1768045035564,0.021041,90797.0,90791.0,0.0110143]
[1768045035743,0.021041,90797.0,90790.0,0.01101442]
[1768045036354,0.021041,90797.0,90789.0,0.01101455]
[1768045036577,0.021041,90797.0,90787.0,0.01101479]
[1768045037389,0.021041,90797.0,90788.0,0.01101467]
[1768045038059,0.021041,90797.0,90789.0,0.01101455]
[1768045038206,0.021041,90797.0,90788.0,0.01101467]
[1768045038420,0.021041,90797.0,90787.0,0.01101479]
[1768045038950,0.021041,90797.0,90788.0,0.01101467]
[1768045039372,0.021041,90797.0,90787.0,0.01101479]
[1768045039988,0.021041,90797.0,90788.0,0.01101467]
[1768045040194,0.021041,90797.0,90789.0,0.01101455]
[1768045040849,0.021041,90797.0,90790.0,0.01101442]
[1768045041472,0.021041,90797.0,90789.0,0.01101455]
[1768045042066,0.021041,90797.0,89485.0,0.03846321]
[1768045042067,0.021041,90797.0,90786.0,0.01101491]
[1768045042270,0.021041,90797.0,90784.0,0.10352672]
[1768045042427,0.021041,90797.0,90784.0,0.04845137]
[1768045043169,0.021041,90797.0,90785.0,0.01101503]
[1768045043467,0.021041,90797.0,90784.0,0.05946652]
[1768045043696,0.021041,90797.0,90785.0,0.01101503]
[1768045043858,0.021041,90797.0,90784.0,0.05946652]
[1768045044419,0.021041,90797.0,90785.0,0.01101503]
[1768045044597,0.021041,90797.0,90784.0,0.05946652]
[1768045044958,0.021041,90797.0,90785.0,0.01101503]
[1768045045410,0.021041,90797.0,90784.0,0.05946652]
[1768045046140,0.021041,90797.0,90785.0,0.01101503]
[1768045046339,0.021041,90797.0,90784.0,0.05946652]
[1768045047949,0.03205457,90797.0,90784.0,0.05946652]
[1768045048300,0.021041,90797.0,90784.0,0.05946652]
[1768045049379,0.021041,90797.0,90784.0,0.04845137]
[1768045049532,0.03205457,90797.0,90784.0,0.04845137]
[1768045049980,0.0110137,90796.0,90784.0,0.04845137]
[1768045050538,0.03205457,90797.0,90784.0,0.04845137]
[1768045051844,0.03205457,90797.0,90784.0,0.05946652]
[1768045053212,0.0110137,90796.0,90781.0,0.01101552]
[1768045053417,0.0110137,90796.0,90782.0,0.01101539]
[1768045053615,0.01101382,90795.0,90781.0,0.01101552]
[1768045053781,0.0110137,90796.0,90782.0,0.01101539]
[1768045056146,0.08072418,90797.0,90783.0,0.01101527]
[1768045056304,0.0110137,90796.0,90782.0,0.01101539]
[1768045056515,0.0110137,90796.0,90781.0,0.01101552]
[1768045056516,0.01101382,90795.0,90781.0,0.01101552]
[1768045056711,0.0110137,90796.0,90783.0,0.01101527]
[1768045056920,0.08072418,90797.0,90783.0,0.01101527]
[1768045057953,0.06971061,90797.0,90784.0,0.01101515]
[1768045058318,0.06971061,90797.0,90785.0,0.01101503]
[1768045058743,0.06971061,90797.0,90784.0,0.01101515]
[1768045060607,0.06971061,90797.0,90785.0,0.01101503]
[1768045060962,0.06971061,90797.0,90784.0,0.01101515]
[1768045061162,0.06971061,90797.0,90785.0,0.01101503]
[1768045061373,0.06971061,90797.0,90784.0,0.01101515]
[1768045061575,0.06971061,90797.0,90783.0,0.01101527]
[1768045061951,0.04866961,90795.0,90781.0,0.01101552]
[1768045062278,0.05968343,90795.0,90781.0,0.01101552]
[1768045062587,0.04866961,90794.0,90780.0,0.21864014]
[1768045062796,0.04866961,90794.0,90779.0,0.02204]
[1768045063335,0.04866961,90794.0,90780.0,0.01101564]
[1768045063561,0.04866961,90794.0,90783.0,0.01101527]
[1768045063755,0.04866961,90794.0,90782.0,0.01101539]
[1768045065068,0.04866961,90794.0,90781.0,0.01101552]
[1768045066175,0.04866961,90794.0,90782.0,0.01101539]
[1768045066332,0.04917096,90787.0,90782.0,0.01101539]
[1768045066534,0.04912596,90787.0,90782.0,0.01101539]
[1768045066973,0.00045635,90787.0,90782.0,0.01101539]
[1768045067382,1e-08,90787.0,90784.0,0.01101515]
[1768045069255,0.021041,90797.0,90784.0,0.01101515]
[1768045069594,0.06971061,90797.0,90784.0,0.01101515]
[1768045069797,0.04866961,90796.0,90786.0,0.01101491]
[1768045069999,0.04866961,90796.0,90785.0,0.01101503]
[1768045070397,0.04866961,90796.0,90786.0,0.01101491]
[1768045072258,0.04866961,90796.0,90785.0,0.01101503]
[1768045072462,0.04866961,90796.0,90786.0,0.01101491]
[1768045073052,0.04866961,90796.0,90787.0,0.01101479]
[1768045074050,0.04866961,90796.0,90786.0,0.01101491]
[1768045076863,0.021041,90797.0,90787.0,0.01101479]
[1768045077391,0.021041,90797.0,90786.0,0.01101491]
[1768045077591,0.021041,90797.0,90785.0,0.01101503]
[1768045078270,0.021041,90797.0,90786.0,0.01101491]
[1768045080618,0.021041,90797.0,90785.0,0.01101503]
[1768045081116,0.021041,90797.0,90786.0,0.01101491]
[1768045083162,0.021041,90797.0,90787.0,0.01101479]
[1768045083371,0.021041,90797.0,90786.0,0.01101491]
[1768045085576,0.021041,90797.0,90786.0,0.06608948]
[1768045085713,0.021041,90797.0,90788.0,0.01101467]
[1768045087568,0.021041,90797.0,90787.0,0.01101479]
[1768045089644,0.021041,90797.0,90788.0,0.01101467]
[1768045089968,0.021041,90797.0,90787.0,0.01101479]
[1768045090566,0.021041,90797.0,90788.0,0.01101467]
[1768045090791,0.021041,90797.0,90789.0,0.01101455]
[1768045091810,0.021041,90797.0,90788.0,0.01101467]
[1768045092650,0.021041,90797.0,90789.0,0.01101455]
[1768045093921,0.021041,90797.0,90788.0,0.01101467]
[1768045095085,0.021041,90797.0,90787.0,0.01101479]
[1768045095288,0.021041,90797.0,90787.0,0.05818736]
[1768045095496,0.021041,90797.0,90788.0,0.01101467]
[1768045095911,0.021041,90797.0,90787.0,0.04717257]
[1768045096273,0.021041,90797.0,90787.0,0.05818736]
[1768045096758,0.021041,90797.0,90789.0,0.01101455]
[1768045096949,0.021041,90797.0,90787.0,0.05818736]
[1768045097289,0.021041,90797.0,90788.0,0.01101467]
[1768045097455,0.021041,90797.0,90789.0,0.01101455]
[1768045099655,0.021041,90797.0,90791.0,0.0110143]
[1768045099852,0.021041,90797.0,90790.0,0.01101442]
[1768045100732,0.021041,90797.0,90789.0,0.01101455]
[1768045102750,0.021041,90797.0,90790.0,0.01101442]
[1768045103533,0.04874714,90796.0,90790.0,0.01101442]
[1768045103886,0.04874714,90796.0,90787.0,0.01101479]
[1768045103887,0.000999,90790.0,90787.0,0.01101479]
[1768045104463,0.04874714,90796.0,90788.0,0.01101467]
[1768045104942,0.04874714,90796.0,90789.0,0.01101455]
[1768045106129,0.04874714,90796.0,90790.0,0.01101442]
[1768045106327,0.04874714,90796.0,90789.0,0.01101455]
[1768045107080,0.04874714,90796.0,90786.0,0.01101491]
[1768045107836,0.04874714,90796.0,90787.0,0.01101479]
[1768045108235,0.04874714,90796.0,90786.0,0.01101491]
[1768045108660,0.021041,90797.0,90787.0,0.01101479]
[1768045110109,0.021041,90797.0,90789.0,0.01101455]
[1768045111396,0.021041,90797.0,90788.0,0.01101467]
[1768045111993,0.04874714,90796.0,90788.0,0.01101467]
[1768045112603,0.04874714,90796.0,90787.0,0.01101479]
[1768045112804,0.04874714,90796.0,90788.0,0.01101467]
[1768045113560,0.04874714,90796.0,90789.0,0.01101455]
[1768045114069,0.04874714,90796.0,90788.0,0.01101467]
[1768045114665,0.04874714,90796.0,90789.0,0.01101455]
[1768045114810,0.04874714,90796.0,90790.0,0.01101442]
[1768045115292,0.04874714,90796.0,90789.0,0.01101455]
[1768045115763,0.04874714,90796.0,90790.0,0.01101442]
[1768045116273,0.04874714,90796.0,90789.0,0.01101455]
[1768045116790,0.04874714,90796.0,90790.0,0.01101442]
[1768045116984,0.021041,90797.0,90789.0,0.01101455]
[1768045117414,0.021041,90797.0,90788.0,0.01101467]
[1768045117557,0.021041,90797.0,90789.0,0.01101455]
[1768045118367,0.021041,90797.0,90788.0,0.01101467]
[1768045118804,0.021041,90797.0,90789.0,0.01101455]
[1768045119143,0.021041,90797.0,90788.0,0.01101467]
[1768045122812,0.021041,90797.0,90789.0,0.01101455]
[1768045124333,0.021041,90797.0,90788.0,0.01101467]
[1768045125741,0.021041,90797.0,90789.0,0.01101455]
[1768045126260,0.021041,90797.0,90788.0,0.01101467]
[1768045126757,0.021041,90797.0,90789.0,0.01101455]
[1768045128005,0.021041,90797.0,90788.0,0.01101467]
[1768045128494,0.021041,90797.0,90783.0,0.05780037]
[1768045129149,0.021041,90797.0,90786.0,0.01101491]
[1768045129375,0.04510877,90796.0,90786.0,0.01101491]
[1768045129579,0.04510877,90796.0,90783.0,0.06609153]
[1768045130373,0.04510877,90796.0,90785.0,0.01101503]
[1768045130582,0.04510877,90796.0,90786.0,0.01101491]
[1768045131263,0.04510877,90796.0,90787.0,0.01101479]
[1768045131504,0.04510877,90796.0,90789.0,0.01101455]
[1768045131702,0.04510877,90796.0,90787.0,0.01101479]
[1768045131900,0.04510877,90796.0,90788.0,0.01101467]
[1768045132058,0.04510877,90796.0,90789.0,0.01101455]
[1768045132517,0.04510877,90796.0,90789.0,0.06608726]
[1768045132678,0.04510877,90796.0,90790.0,0.01101442]
[1768045133670,0.04510877,90796.0,90789.0,0.01101455]
[1768045134868,0.04510877,90796.0,90790.0,0.01101442]
[1768045135825,0.04510877,90796.0,90789.0,0.01101455]
[1768045136109,0.04510877,90796.0,90790.0,0.01101442]
[1768045137336,0.04510877,90796.0,90789.0,0.01101455]
[1768045138193,0.04510877,90796.0,90790.0,0.01101442]
[1768045138591,0.04510877,90796.0,90789.0,0.01101455]
[1768045138791,0.04510877,90796.0,90790.0,0.01101442]
[1768045139451,0.04510877,90796.0,90789.0,0.01101455]
[1768045139985,0.04510877,90796.0,90787.0,0.01101479]
[1768045140489,0.04510877,90796.0,90789.0,0.01101455]
[1768045141075,0.04510877,90796.0,90788.0,0.01101467]
[1768045141376,0.04510877,90796.0,90786.0,0.01101491]
[1768045142139,0.04510877,90796.0,90789.0,0.01101455]
[1768045142516,0.04510877,90796.0,90790.0,0.01101442]
[1768045143067,0.04510877,90796.0,90791.0,0.0110143]
[1768045143344,0.04510877,90796.0,90789.0,0.01101455]
[1768045143685,0.04510877,90796.0,90788.0,0.01101467]
[1768045143881,0.04510877,90796.0,90789.0,0.01101455]
[1768045144078,0.04510877,90796.0,90790.0,0.01101442]
[1768045145988,0.04510877,90796.0,90789.0,0.01101455]
[1768045146184,0.04510877,90796.0,90790.0,0.01101442]
[1768045147078,0.04510877,90796.0,90789.0,0.01101455]
[1768045147374,0.04510877,90796.0,90790.0,0.01101442]
[1768045147945,0.04510877,90796.0,90789.0,0.01101455]
[1768045148241,0.04510877,90796.0,90788.0,0.01101467]
[1768045148682,0.04510877,90796.0,90789.0,0.01101455]
[1768045149667,0.04510877,90796.0,90790.0,0.01101442]
[1768045150388,0.04510877,90796.0,90789.0,0.01101455]
[1768045150707,0.04510877,90796.0,90788.0,0.01101467]
[1768045151218,0.021041,90797.0,90788.0,0.01101467]
[1768045151919,0.021041,90797.0,90787.0,0.01101479]
[1768045154785,0.021041,90797.0,90786.0,0.01101491]
[1768045155204,0.021041,90797.0,90785.0,0.01101503]
[1768045163150,0.021041,90797.0,90784.0,0.01101515]
[1768045163661,0.021041,90797.0,90779.0,0.07034668]
[1768045163859,0.021041,90797.0,90784.0,0.01101515]
[1768045166263,0.021041,90797.0,90786.0,0.01101491]
[1768045167259,0.021041,90797.0,90787.0,0.01101479]
[1768045171245,0.021041,90797.0,90788.0,0.01101467]
[1768045171931,0.021041,90797.0,90787.0,0.01101479]
[1768045175395,0.021041,90797.0,90788.0,0.01101467]
[1768045175750,0.021041,90797.0,90787.0,0.01101479]
[1768045176337,0.021041,90797.0,90788.0,0.01101467]
[1768045176686,0.021041,90797.0,90787.0,0.01101479]
[1768045179994,0.021041,90797.0,90788.0,0.01101467]
[1768045180894,0.021041,90797.0,90787.0,0.01101479]
[1768045181837,0.021041,90797.0,90788.0,0.01101467]
[1768045182673,0.021041,90797.0,90787.0,0.01101479]
[1768045182781,0.021041,90797.0,90788.0,0.01101467]
[1768045187411,0.021041,90797.0,90789.0,0.01101455]
[1768045187544,0.021041,90797.0,90791.0,0.0110143]
[1768045188500,0.021041,90797.0,90790.0,0.01101442]
[1768045189065,0.021041,90797.0,90789.0,0.01101455]
[1768045189273,0.021041,90797.0,90790.0,0.01101442]
[1768045190454,0.021041,90797.0,90791.0,0.0110143]
[1768045191101,0.021041,90797.0,90790.0,0.01101442]
[1768045192401,0.021041,90797.0,90789.0,0.01101455]
[1768045193369,0.0664508,90797.0,90789.0,0.01101455]
[1768045193588,0.0454098,90796.0,90789.0,0.01101455]
[1768045194002,0.0454098,90796.0,90790.0,0.01101442]
[1768045194502,0.0454098,90796.0,90789.0,0.01101455]
[1768045195427,0.0454098,90796.0,90790.0,0.01101442]
[1768045196470,0.0454098,90796.0,90789.0,0.01101455]
[1768045198910,0.0454098,90796.0,90790.0,0.01101442]
[1768045199103,0.021041,90797.0,90789.0,0.01101455]
[1768045199627,0.021041,90797.0,90790.0,0.01101442]
[1768045202413,0.01101491,90801.0,90795.0,0.01101382]
[1768045202554,0.02204,90799.0,90796.0,0.05798133]
[1768045203575,6.1e-07,90805.0,90799.0,0.01101333]
[1768045203782,0.02204061,90805.0,90800.0,0.01092319]
[1768045204005,0.02204061,90805.0,90800.0,0.01085498]
[1768045204210,0.02204061,90805.0,90799.0,0.01101333]
[1768045204640,0.02204061,90805.0,90798.0,0.01101345]
[1768045205130,0.02204061,90805.0,90799.0,0.01101333]
[1768045205336,0.02204061,90805.0,90798.0,0.01101345]
[1768045207662,0.02204061,90805.0,90800.0,0.01101321]
[1768045208037,0.02204061,90805.0,90799.0,0.01101333]
[1768045208038,0.02204061,90805.0,90798.0,0.01101345]
[1768045208362,6.1e-07,90805.0,90799.0,0.01101333]
[1768045208567,0.03305585,90805.0,90800.0,0.01101321]
[1768045209184,0.03305585,90805.0,90799.0,0.01101333]
[1768045209725,0.03305585,90805.0,90797.0,0.01101357]
[1768045209925,0.03305585,90805.0,90798.0,0.01101345]
[1768045210984,0.03305585,90805.0,90797.0,0.01101357]
[1768045213127,0.02204061,90805.0,90796.0,0.04696763]
[1768045213382,0.02204061,90805.0,90797.0,0.01101357]
[1768045213649,0.02204061,90805.0,90796.0,0.05798133]
[1768045214219,0.02204061,90805.0,90797.0,0.01101357]
[1768045214627,0.02204061,90805.0,90796.0,0.05798133]
[1768045214823,0.02204061,90805.0,90796.0,0.04696763]
[1768045215735,0.02204061,90805.0,90796.0,0.05798133]
[1768045215930,0.02204061,90805.0,90797.0,0.01101357]
[1768045217624,0.02204061,90805.0,90796.0,0.05798133]
[1768045218442,0.02204061,90805.0,90797.0,0.01101357]
[1768045220106,0.02204061,90805.0,90796.0,0.04696763]
[1768045220333,0.02204061,90805.0,90797.0,0.01101357]
[1768045223631,0.02204061,90805.0,90799.0,0.01101333]
[1768045223782,0.02204061,90805.0,90800.0,0.01101321]
[1768045224657,0.02204061,90805.0,90801.0,0.01101309]
[1768045225052,0.02204061,90805.0,90802.0,0.01101297]
[1768045225599,0.02204061,90805.0,90801.0,0.01101309]
[1768045226966,0.02204061,90805.0,90802.0,0.01101297]
[1768045227299,0.0001506,90806.0,90801.0,0.01101309]
[1768045227505,0.0221906,90806.0,90801.0,0.01101309]
[1768045227715,0.0221906,90806.0,90800.0,0.01101321]
[1768045227915,0.0221906,90806.0,90801.0,0.01101309]
[1768045228191,0.0221906,90806.0,90800.0,0.01101321]
[1768045228550,0.0221906,90806.0,90799.0,0.01101333]
[1768045229095,0.0221906,90806.0,90800.0,0.01101321]
[1768045229671,0.0221906,90806.0,90799.0,0.01092331]
[1768045229930,0.0001506,90806.0,90800.0,0.01101321]
[1768045230117,0.02204,90813.0,90809.0,0.01101212]
[1768045230329,0.07169641,90813.0,90810.0,0.011012]
[1768045230735,0.07169641,90813.0,90808.0,0.05506108]
[1768045230736,0.07169641,90813.0,90807.0,0.01101236]
[1768045230939,0.02204,90813.0,90806.0,0.01101248]
[1768045231578,0.02204,90813.0,90805.0,0.0110126]
[1768045232168,0.0001506,90815.0,90805.0,0.0110126]
[1768045232169,0.0001506,90815.0,90807.0,0.01101236]
[1768045232408,0.02204,90813.0,90808.0,0.04813149]
[1768045232616,0.02204,90813.0,90808.0,0.05914373]
[1768045233463,0.02204,90813.0,90808.0,0.04813149]
[1768045234023,0.02204,90813.0,90807.0,0.02202496]
[1768045234378,0.02204,90813.0,90807.0,0.0110126]
[1768045235814,0.02204,90813.0,90807.0,0.02202496]
[1768045237879,0.02204,90813.0,90807.0,0.0110126]
[1768045243446,0.02204,90813.0,90807.0,0.0100136]
[1768045243657,0.02204,90813.0,90807.0,0.00992358]
[1768045243824,0.02204,90813.0,90803.0,0.04811357]
[1768045244028,0.02204,90813.0,90804.0,0.02204]
[1768045244240,0.03305163,90813.0,90804.0,0.02204]
[1768045245181,0.02204,90813.0,90804.0,0.02204]
[1768045245375,0.02204,90813.0,90804.0,0.02197179]
[1768045247321,0.02204,90813.0,90804.0,0.01325246]
[1768045247578,0.02204,90813.0,90796.0,0.0110137]
[1768045247779,0.01101188,90811.0,90797.0,0.04811357]
[1768045247960,0.01101188,90811.0,90801.0,0.03305058]
[1768045248419,0.01101188,90811.0,90797.0,0.05912714]
[1768045248625,0.01101188,90811.0,90798.0,0.08116415]
[1768045249241,0.01101188,90811.0,90798.0,0.04811357]
[1768045249441,0.01101188,90811.0,90799.0,0.03305058]
[1768045250247,0.01101176,90812.0,90799.0,0.03305058]
[1768045250546,0.01101188,90811.0,90799.0,0.03305058]
[1768045250750,0.01101188,90811.0,90799.0,0.08116415]
[1768045251359,0.011012,90810.0,90799.0,0.04811357]
[1768045251607,0.011012,90810.0,90800.0,0.03305058]
[1768045251747,0.01101188,90811.0,90800.0,0.03305058]
[1768045251975,0.011012,90810.0,90800.0,0.03305058]
[1768045253081,0.01101188,90811.0,90800.0,0.03305058]
[1768045255843,0.011012,90810.0,90800.0,0.03305058]
[1768045256222,0.011012,90810.0,90799.0,0.04811357]
[1768045256569,0.011012,90810.0,90799.0,0.08116415]
[1768045256971,0.01101188,90811.0,90799.0,0.08116415]
[1768045257157,0.011012,90810.0,90799.0,0.08116415]
[1768045257662,0.011012,90810.0,90799.0,0.04811357]
[1768045257877,0.01101212,90809.0,90799.0,0.04811357]
[1768045258080,0.011012,90810.0,90799.0,0.08116415]
[1768045259097,0.011012,90810.0,90799.0,0.08107413]
[1768045259300,0.01101188,90811.0,90799.0,0.08107413]
[1768045263382,0.011012,90810.0,90799.0,0.08107413]
[1768045263599,0.01101212,90809.0,90799.0,0.08107413]
[1768045264033,0.011012,90810.0,90799.0,0.08107413]
[1768045264453,0.01101188,90811.0,90799.0,0.08107413]
[1768045264891,0.01101176,90812.0,90799.0,0.08107413]
[1768045265720,0.011012,90810.0,90799.0,0.08107413]
[1768045265883,0.01101188,90811.0,90800.0,0.04533374]
[1768045267142,0.01101176,90812.0,90800.0,0.04533374]
[1768045268123,0.01101188,90811.0,90800.0,0.04533374]
[1768045268514,0.01101176,90812.0,90800.0,0.04533374]
[1768045269779,0.01101212,90809.0,90800.0,0.04533374]
[1768045269917,0.01101176,90812.0,90800.0,0.04533374]
[1768045270111,0.011012,90810.0,90800.0,0.04533374]
[1768045270316,0.06607115,90812.0,90800.0,0.04533374]
[1768045270858,0.01101188,90811.0,90800.0,0.04533374]
[1768045271038,0.01101176,90812.0,90800.0,0.04533374]
[1768045271443,0.01101212,90809.0,90800.0,0.04533374]
[1768045271661,0.01101188,90811.0,90800.0,0.04533374]
[1768045272021,0.011012,90810.0,90800.0,0.04533374]
[1768045275694,0.011012,90810.0,90800.0,0.04524371]
[1768045276053,0.01101188,90811.0,90799.0,0.03305058]
[1768045277027,0.06038671,90810.0,90799.0,0.03305058]
[1768045278424,0.04937471,90809.0,90799.0,0.03305058]
[1768045278815,0.06038683,90809.0,90799.0,0.03305058]
[1768045279517,0.04937471,90809.0,90799.0,0.03305058]
[1768045285631,0.06038683,90809.0,90799.0,0.03305058]
[1768045286505,0.04937471,90809.0,90799.0,0.03305058]
[1768045287068,0.06038683,90809.0,90799.0,0.03305058]
[1768045287383,0.01101212,90809.0,90800.0,0.04533374]
[1768045287650,0.011012,90810.0,90800.0,0.04533374]
[1768045288528,0.06038671,90810.0,90801.0,0.011012]
[1768045289264,0.01101212,90809.0,90801.0,0.011012]
[1768045289750,0.06038671,90810.0,90801.0,0.011012]
[1768045290112,0.06038671,90810.0,90796.0,0.0110137]
[1768045290493,0.06038671,90810.0,90797.0,0.01101382]
[1768045290699,0.04937471,90810.0,90797.0,0.01101382]
[1768045291042,0.04937471,90810.0,90797.0,0.02202739]
[1768045291495,0.04937471,90810.0,90797.0,0.01101357]
[1768045291955,0.04937471,90810.0,90798.0,0.03305058]
[1768045292288,0.04937471,90810.0,90798.0,0.04406403]
[1768045292473,0.04937471,90810.0,90798.0,0.03305058]
[1768045294906,0.06038671,90810.0,90798.0,0.03305058]
[1768045295110,0.04623111,90808.0,90798.0,0.03305058]
[1768045306847,0.04623111,90808.0,90798.0,0.2516074]
[1768045308572,0.04623111,90808.0,90798.0,0.03305058]
[1768045308874,0.04623111,90808.0,90798.0,0.04406403]
[1768045309033,0.04623111,90808.0,90798.0,0.03305058]
[1768045310528,0.011012,90810.0,90798.0,0.03305058]
[1768045310732,0.01101188,90811.0,90798.0,0.03305058]
[1768045310932,0.01101212,90809.0,90799.0,0.04883336]
[1768045311184,0.01101224,90808.0,90799.0,0.04883336]
[1768045311390,0.01101212,90809.0,90799.0,0.04883336]